[Event "Late-Titled-Tuesday-Blitz-April-30-2024"]
[Site "Chess.com"]
[Date "2024.04.30"]
[Round "4"]
[White "SaqoChess_Twitch"]
[Black "Nemsko"]
[Result "1-0"]
[WhiteElo "2682"]
[BlackElo "2449"]
[TimeControl "180+1"]
[EndTime "14:43:19 PDT"]
[Termination "SaqoChess_Twitch won by checkmate"]

1. d4 {[%clk 0:03:00.9]} 1... Nf6 {[%clk 0:02:56.3]} 2. c4 {[%clk 0:03:00.6]}
2... e6 {[%clk 0:02:55.6]} 3. Nc3 {[%clk 0:03:01.2]} 3... Bb4 {[%clk 0:02:54.9]}
4. e3 {[%clk 0:03:01.9]} 4... O-O {[%clk 0:02:52.8]} 5. a3 {[%clk 0:03:02.4]}
5... Bxc3+ {[%clk 0:02:50.2]} 6. bxc3 {[%clk 0:03:03.3]} 6... d5 {[%clk
0:02:50.8]} 7. cxd5 {[%clk 0:03:00.4]} 7... exd5 {[%clk 0:02:51.7]} 8. Bd3
{[%clk 0:03:00.3]} 8... c6 {[%clk 0:02:46.7]} 9. Ne2 {[%clk 0:03:00.8]} 9... Re8
{[%clk 0:02:45]} 10. O-O {[%clk 0:03:01.2]} 10... Nbd7 {[%clk 0:02:43.6]} 11. f3
{[%clk 0:03:01.4]} 11... c5 {[%clk 0:02:41.4]} 12. Ra2 {[%clk 0:03:01.4]} 12...
b6 {[%clk 0:02:41.2]} 13. g4 {[%clk 0:03:00.9]} 13... Nf8 {[%clk 0:02:29.9]} 14.
Ng3 {[%clk 0:02:59.5]} 14... Qc7 {[%clk 0:02:24.1]} 15. g5 {[%clk 0:02:58.1]}
15... N6d7 {[%clk 0:02:22.2]} 16. f4 {[%clk 0:02:58.8]} 16... a5 {[%clk
0:02:10.8]} 17. h4 {[%clk 0:02:58.9]} 17... Ba6 {[%clk 0:02:10.7]} 18. Bxa6
{[%clk 0:02:56.2]} 18... Rxa6 {[%clk 0:02:11.6]} 19. h5 {[%clk 0:02:55.8]} 19...
b5 {[%clk 0:02:05.4]} 20. Rg2 {[%clk 0:02:52.9]} 20... cxd4 {[%clk 0:02:01.7]}
21. cxd4 {[%clk 0:02:52.5]} 21... b4 {[%clk 0:01:57.9]} 22. f5 {[%clk
0:02:48.5]} 22... Rb6 {[%clk 0:01:15.7]} 23. axb4 {[%clk 0:02:45.1]} 23... axb4
{[%clk 0:01:15.6]} 24. g6 {[%clk 0:02:45.2]} 24... fxg6 {[%clk 0:01:12.5]} 25.
hxg6 {[%clk 0:02:44.2]} 25... hxg6 {[%clk 0:01:11.4]} 26. Qg4 {[%clk 0:02:42]}
26... Nf6 {[%clk 0:00:46.9]} 27. Qh3 {[%clk 0:02:41.9]} 27... N6h7 {[%clk
0:00:38.4]} 28. Rh2 {[%clk 0:02:37.8]} 28... b3 {[%clk 0:00:29.8]} 29. Ba3
{[%clk 0:02:37.6]} 29... Rxe3 {[%clk 0:00:29]} 30. Kg2 {[%clk 0:02:07.3]} 30...
b2 {[%clk 0:00:04.6]} 31. fxg6 {[%clk 0:02:07.3]} 31... Rxg3+ {[%clk 0:00:02.6]}
32. Qxg3 {[%clk 0:02:06.6]} 32... Qxg3+ {[%clk 0:00:03.5]} 33. Kxg3 {[%clk
0:02:07.3]} 33... b1=Q {[%clk 0:00:03.7]} 34. gxh7+ {[%clk 0:01:57.3]} 34...
Nxh7 {[%clk 0:00:03.4]} 35. Rxb1 {[%clk 0:01:55.9]} 35... Rxb1 {[%clk
0:00:04.3]} 36. Kf4 {[%clk 0:01:52.4]} 36... Nf6 {[%clk 0:00:03.6]} 37. Bc5
{[%clk 0:01:45.3]} 37... Re1 {[%clk 0:00:03.7]} 38. Ra2 {[%clk 0:01:43.4]} 38...
Re4+ {[%clk 0:00:04.1]} 39. Kf5 {[%clk 0:01:43.4]} 39... Kh7 {[%clk 0:00:02.7]}
40. Ra7 {[%clk 0:01:24.7]} 40... Rh4 {[%clk 0:00:01.9]} 41. Be7 {[%clk
0:01:22.9]} 41... Rh6 {[%clk 0:00:01.5]} 42. Bf8 {[%clk 0:01:21.3]} 42... Rg6
{[%clk 0:00:01.5]} 43. Ke5 {[%clk 0:01:18.4]} 43... Ng4+ {[%clk 0:00:01.7]} 44.
Kxd5 {[%clk 0:01:18]} 44... Ne3+ {[%clk 0:00:01.6]} 45. Ke4 {[%clk 0:01:17.2]}
45... Ng4 {[%clk 0:00:01.2]} 46. d5 {[%clk 0:01:12.8]} 46... Nf6+ {[%clk
0:00:01.7]} 47. Kd4 {[%clk 0:01:13.4]} 47... Nxd5 {[%clk 0:00:02.4]} 48. Kxd5
{[%clk 0:01:13.3]} 48... Rg5+ {[%clk 0:00:02.9]} 49. Ke4 {[%clk 0:01:13.1]}
49... Rg4+ {[%clk 0:00:03.3]} 50. Kf5 {[%clk 0:01:11.1]} 50... Rg1 {[%clk
0:00:03.8]} 51. Bd6 {[%clk 0:01:10.6]} 51... Rf1+ {[%clk 0:00:04]} 52. Bf4
{[%clk 0:01:11]} 52... Rg1 {[%clk 0:00:03.8]} 53. Rb7 {[%clk 0:01:09.9]} 53...
Rh1 {[%clk 0:00:03.5]} 54. Be3 {[%clk 0:01:08.4]} 54... Rf1+ {[%clk 0:00:03.3]}
55. Kg4 {[%clk 0:01:06.1]} 55... Re1 {[%clk 0:00:01.6]} 56. Bf4 {[%clk
0:01:05.6]} 56... Rg1+ {[%clk 0:00:01.6]} 57. Kf5 {[%clk 0:01:04.6]} 57... Rg2
{[%clk 0:00:01.4]} 58. Be5 {[%clk 0:01:01.8]} 58... Rg6 {[%clk 0:00:01.7]} 59.
Rc7 {[%clk 0:00:59.4]} 59... Rg1 {[%clk 0:00:02]} 60. Ke6 {[%clk 0:00:59.1]}
60... Rg6+ {[%clk 0:00:01.9]} 61. Kf7 {[%clk 0:00:56.8]} 61... Rg2 {[%clk
0:00:02.8]} 62. Bd4 {[%clk 0:00:48.9]} 62... Rg4 {[%clk 0:00:02]} 63. Ba7 {[%clk
0:00:48.1]} 63... Rf4+ {[%clk 0:00:01.8]} 64. Ke6 {[%clk 0:00:47.8]} 64... Rg4
{[%clk 0:00:02.2]} 65. Kf5 {[%clk 0:00:47.1]} 65... Rg2 {[%clk 0:00:02]} 66. Rc3
{[%clk 0:00:45.5]} 66... Rg6 {[%clk 0:00:02.1]} 67. Rh3+ {[%clk 0:00:44.4]}
67... Rh6 {[%clk 0:00:02.6]} 68. Rg3 {[%clk 0:00:43.9]} 68... Rf6+ {[%clk
0:00:02.6]} 69. Ke5 {[%clk 0:00:44.5]} 69... Rg6 {[%clk 0:00:01.9]} 70. Rd3
{[%clk 0:00:42.1]} 70... Rg5+ {[%clk 0:00:02.4]} 71. Kf4 {[%clk 0:00:41.6]}
71... Rg2 {[%clk 0:00:03]} 72. Be3 {[%clk 0:00:40.8]} 72... Rg6 {[%clk
0:00:03.3]} 73. Bd4 {[%clk 0:00:40.7]} 73... Rh6 {[%clk 0:00:03.1]} 74. Kf5
{[%clk 0:00:39.1]} 74... Rh5+ {[%clk 0:00:03.2]} 75. Kg4 {[%clk 0:00:38.9]}
75... Rh6 {[%clk 0:00:03.4]} 76. Be3 {[%clk 0:00:39]} 76... Rg6+ {[%clk
0:00:03.8]} 77. Bg5 {[%clk 0:00:39.4]} 77... Kg8 {[%clk 0:00:03.2]} 78. Rd8+
{[%clk 0:00:35.5]} 78... Kh7 {[%clk 0:00:03.4]} 79. Rd1 {[%clk 0:00:36.1]} 79...
Ra6 {[%clk 0:00:03]} 80. Rh1+ {[%clk 0:00:33.4]} 80... Kg6 {[%clk 0:00:03.6]}
81. Bf4 {[%clk 0:00:33.6]} 81... Ra4 {[%clk 0:00:04.1]} 82. Rb1 {[%clk
0:00:33.6]} 82... Ra6 {[%clk 0:00:04]} 83. Rb5 {[%clk 0:00:33.3]} 83... Re6
{[%clk 0:00:04.3]} 84. Rg5+ {[%clk 0:00:33.3]} 84... Kf7 {[%clk 0:00:04.9]} 85.
Kf5 {[%clk 0:00:33.3]} 85... Rf6+ {[%clk 0:00:05.4]} 86. Ke4 {[%clk 0:00:33.8]}
86... Re6+ {[%clk 0:00:05.8]} 87. Be5 {[%clk 0:00:34.4]} 87... Rg6 {[%clk
0:00:06.1]} 88. Rf5+ {[%clk 0:00:34.5]} 88... Ke6 {[%clk 0:00:06.6]} 89. Rf8
{[%clk 0:00:34.2]} 89... Rg4+ {[%clk 0:00:06.6]} 90. Bf4 {[%clk 0:00:34.5]}
90... Rg6 {[%clk 0:00:06.7]} 91. Ra8 {[%clk 0:00:32.1]} 91... Rf6 {[%clk
0:00:06.7]} 92. Ra7 {[%clk 0:00:31.5]} 92... Rf7 {[%clk 0:00:06.6]} 93. Ra6+
{[%clk 0:00:31.1]} 93... Kd7 {[%clk 0:00:06.5]} 94. Be5 {[%clk 0:00:31.2]} 94...
Ke7 {[%clk 0:00:02.7]} 95. Kd5 {[%clk 0:00:30.1]} 95... Rf1 {[%clk 0:00:02.2]}
96. Bxg7 {[%clk 0:00:28.9]} 96... Rd1+ {[%clk 0:00:02.8]} 97. Bd4 {[%clk
0:00:29.2]} 97... Kf7 {[%clk 0:00:03.7]} 98. Ra7+ {[%clk 0:00:27.1]} 98... Kg6
{[%clk 0:00:03.8]} 99. Rg7+ {[%clk 0:00:27.4]} 99... Kf5 {[%clk 0:00:04.2]} 100.
Rf7+ {[%clk 0:00:27.4]} 100... Kg6 {[%clk 0:00:04.5]} 101. Rf8 {[%clk
0:00:27.2]} 101... Rd2 {[%clk 0:00:04]} 102. Ke4 {[%clk 0:00:26.8]} 102... Re2+
{[%clk 0:00:04.1]} 103. Be3 {[%clk 0:00:26.9]} 103... Ra2 {[%clk 0:00:04.3]}
104. Rc8 {[%clk 0:00:25.2]} 104... Ra4+ {[%clk 0:00:04.8]} 105. Bd4 {[%clk
0:00:25.7]} 105... Ra2 {[%clk 0:00:04.6]} 106. Kd5 {[%clk 0:00:24.6]} 106... Kf5
{[%clk 0:00:04.5]} 107. Rf8+ {[%clk 0:00:24.1]} 107... Kg5 {[%clk 0:00:05.1]}
108. Be5 {[%clk 0:00:23.7]} 108... Ra5+ {[%clk 0:00:04.8]} 109. Ke6 {[%clk
0:00:24.3]} 109... Ra6+ {[%clk 0:00:05.1]} 110. Bd6 {[%clk 0:00:25]} 110... Ra4
{[%clk 0:00:05.2]} 111. Rg8+ {[%clk 0:00:24.1]} 111... Kh5 {[%clk 0:00:04.3]}
112. Be5 {[%clk 0:00:24.5]} 112... Ra6+ {[%clk 0:00:04.5]} 113. Kf5 {[%clk
0:00:24.3]} 113... Rh6 {[%clk 0:00:03.2]} 114. Rg1 {[%clk 0:00:21.9]} 114... Ra6
{[%clk 0:00:01.1]} 115. Rh1# {[%clk 0:00:20.8]} 1-0

[Event "Late-Titled-Tuesday-Blitz-April-30-2024"]
[Site "Chess.com"]
[Date "2024.04.30"]
[Round "5"]
[White "dianamirza"]
[Black "Nechitaylo_Nikita"]
[Result "0-1"]
[WhiteElo "1987"]
[BlackElo "2354"]
[TimeControl "180+1"]
[EndTime "14:52:07 PDT"]
[Termination "Nechitaylo_Nikita won by resignation"]

1. e4 {[%clk 0:02:51.8]} 1... c5 {[%clk 0:02:58.9]} 2. Nf3 {[%clk 0:02:43.3]}
2... d6 {[%clk 0:02:58.2]} 3. d4 {[%clk 0:02:43.9]} 3... cxd4 {[%clk 0:02:59.1]}
4. Nxd4 {[%clk 0:02:44.5]} 4... Nf6 {[%clk 0:02:57.3]} 5. f3 {[%clk 0:02:41.5]}
5... Nc6 {[%clk 0:02:55.6]} 6. Be3 {[%clk 0:02:41.5]} 6... e5 {[%clk 0:02:52.3]}
7. Nb3 {[%clk 0:02:35.2]} 7... Be7 {[%clk 0:02:48.2]} 8. Nc3 {[%clk 0:02:35.4]}
8... O-O {[%clk 0:02:44]} 9. Qd2 {[%clk 0:02:33.2]} 9... Be6 {[%clk 0:02:28.7]}
10. g4 {[%clk 0:02:33]} 10... a5 {[%clk 0:02:19.2]} 11. g5 {[%clk 0:02:30.5]}
11... Nh5 {[%clk 0:02:12.7]} 12. Bb5 {[%clk 0:02:29.8]} 12... Nf4 {[%clk
0:02:12.1]} 13. Bxf4 {[%clk 0:02:27.5]} 13... exf4 {[%clk 0:02:13]} 14. Qxf4
{[%clk 0:02:24.3]} 14... Bxg5 {[%clk 0:02:12.2]} 15. Qg3 {[%clk 0:02:11.2]}
15... Bh4 {[%clk 0:02:11.5]} 0-1

[Event "Late-Titled-Tuesday-Blitz-April-30-2024"]
[Site "Chess.com"]
[Date "2024.04.30"]
[Round "5"]
[White "RandomNoob04"]
[Black "AungTZ"]
[Result "1-0"]
[WhiteElo "2736"]
[BlackElo "2179"]
[TimeControl "180+1"]
[EndTime "14:52:18 PDT"]
[Termination "RandomNoob04 won by resignation"]

1. e4 {[%clk 0:03:00.9]} 1... c5 {[%clk 0:02:38.2]} 2. d4 {[%clk 0:03:01.2]}
2... cxd4 {[%clk 0:02:37.6]} 3. c3 {[%clk 0:03:01.9]} 3... dxc3 {[%clk
0:02:37.7]} 4. Nxc3 {[%clk 0:03:02.8]} 4... e6 {[%clk 0:02:37.7]} 5. Nf3 {[%clk
0:03:03.7]} 5... a6 {[%clk 0:02:33.2]} 6. Bc4 {[%clk 0:03:04.2]} 6... Nc6 {[%clk
0:02:33.3]} 7. O-O {[%clk 0:03:03.3]} 7... Nf6 {[%clk 0:02:31.1]} 8. e5 {[%clk
0:02:59.8]} 8... Ng4 {[%clk 0:02:29.7]} 9. Bf4 {[%clk 0:03:00.3]} 9... f6 {[%clk
0:02:26.6]} 10. h3 {[%clk 0:02:46.6]} 10... Ngxe5 {[%clk 0:02:25.4]} 11. Nxe5
{[%clk 0:02:43.1]} 11... Nxe5 {[%clk 0:02:25.4]} 12. Bxe5 {[%clk 0:02:42.3]}
12... fxe5 {[%clk 0:02:23.1]} 13. Qh5+ {[%clk 0:02:43]} 13... Ke7 {[%clk
0:02:20.9]} 14. Qxe5 {[%clk 0:02:43.9]} 14... d6 {[%clk 0:02:18.5]} 15. Qg5+
{[%clk 0:02:32.4]} 15... Ke8 {[%clk 0:02:18.1]} 16. Qe3 {[%clk 0:02:29]} 16...
Qf6 {[%clk 0:02:05.2]} 17. Nd5 {[%clk 0:02:26.3]} 17... Qf7 {[%clk 0:02:03.2]}
18. Nb6 {[%clk 0:02:26.1]} 18... Rb8 {[%clk 0:02:01.8]} 19. Nxc8 {[%clk
0:02:24.3]} 19... Rxc8 {[%clk 0:01:59.8]} 20. Bxe6 {[%clk 0:02:24.9]} 1-0

[Event "Late-Titled-Tuesday-Blitz-April-30-2024"]
[Site "Chess.com"]
[Date "2024.04.30"]
[Round "5"]
[White "ahmedkandiliii"]
[Black "jactorres"]
[Result "1-0"]
[WhiteElo "2612"]
[BlackElo "2441"]
[TimeControl "180+1"]
[EndTime "14:52:45 PDT"]
[Termination "ahmedkandiliii won by resignation"]

1. e4 {[%clk 0:03:00]} 1... e5 {[%clk 0:02:53.5]} 2. Nf3 {[%clk 0:02:59.8]} 2...
Nc6 {[%clk 0:02:53.7]} 3. d4 {[%clk 0:02:56.6]} 3... exd4 {[%clk 0:02:53.7]} 4.
Bc4 {[%clk 0:02:57]} 4... Nf6 {[%clk 0:02:53.5]} 5. Ng5 {[%clk 0:02:54.7]} 5...
Ne5 {[%clk 0:02:20.1]} 6. Bb3 {[%clk 0:02:54.5]} 6... Bb4+ {[%clk 0:02:03]} 7.
c3 {[%clk 0:02:49]} 7... dxc3 {[%clk 0:01:58.4]} 8. bxc3 {[%clk 0:02:49.9]} 8...
Bc5 {[%clk 0:01:52.4]} 9. f4 {[%clk 0:02:48.9]} 9... O-O {[%clk 0:01:26.5]} 10.
fxe5 {[%clk 0:02:44.8]} 10... Nxe4 {[%clk 0:01:05.4]} 11. Nxe4 {[%clk
0:02:33.9]} 11... Qh4+ {[%clk 0:01:05.1]} 12. Ng3 {[%clk 0:02:34.3]} 1-0

[Event "Late-Titled-Tuesday-Blitz-April-30-2024"]
[Site "Chess.com"]
[Date "2024.04.30"]
[Round "5"]
[White "vugarrasulov"]
[Black "Pig-filth"]
[Result "1-0"]
[WhiteElo "2960"]
[BlackElo "2305"]
[TimeControl "180+1"]
[EndTime "14:52:48 PDT"]
[Termination "vugarrasulov won by resignation"]

1. e4 {[%clk 0:03:00.9]} 1... Nf6 {[%clk 0:02:59.2]} 2. Nc3 {[%clk 0:03:01.1]}
2... d5 {[%clk 0:02:58.9]} 3. e5 {[%clk 0:03:00.9]} 3... Ne4 {[%clk 0:02:58.8]}
4. Nf3 {[%clk 0:02:59.7]} 4... Nxc3 {[%clk 0:02:53.1]} 5. bxc3 {[%clk
0:02:59.2]} 5... Bg4 {[%clk 0:02:52.3]} 6. Rb1 {[%clk 0:02:58.7]} 6... b6 {[%clk
0:02:51.8]} 7. h3 {[%clk 0:02:59.1]} 7... Bh5 {[%clk 0:02:51.2]} 8. e6 {[%clk
0:02:59.3]} 8... fxe6 {[%clk 0:02:50.7]} 9. g4 {[%clk 0:02:59.2]} 9... Bf7
{[%clk 0:02:43.9]} 10. Ne5 {[%clk 0:02:59.5]} 10... c6 {[%clk 0:02:44]} 11. Qf3
{[%clk 0:02:54.5]} 11... Bg8 {[%clk 0:02:44.2]} 12. d4 {[%clk 0:02:51.6]} 12...
g6 {[%clk 0:02:37.2]} 13. Bd3 {[%clk 0:02:46]} 13... Bg7 {[%clk 0:02:32.3]} 14.
Bf4 {[%clk 0:02:46.6]} 14... Qc8 {[%clk 0:02:14.4]} 15. O-O {[%clk 0:02:41.7]}
15... Nd7 {[%clk 0:02:12.7]} 16. Qe3 {[%clk 0:02:18.9]} 16... Bxe5 {[%clk
0:02:11.8]} 17. Bxe5 {[%clk 0:02:19.8]} 17... Nf6 {[%clk 0:02:07.4]} 18. g5
{[%clk 0:02:19.2]} 18... Kf7 {[%clk 0:01:42.9]} 19. Qf4 {[%clk 0:02:13.7]} 1-0

[Event "Late-Titled-Tuesday-Blitz-April-30-2024"]
[Site "Chess.com"]
[Date "2024.04.30"]
[Round "5"]
[White "Jahonas"]
[Black "carloseduar100"]
[Result "0-1"]
[WhiteElo "2381"]
[BlackElo "2230"]
[TimeControl "180+1"]
[EndTime "14:53:41 PDT"]
[Termination "carloseduar100 won by resignation"]

1. d4 {[%clk 0:03:00.9]} 1... d5 {[%clk 0:02:57.6]} 2. c4 {[%clk 0:03:00.9]}
2... e5 {[%clk 0:02:57.8]} 3. dxe5 {[%clk 0:03:00.6]} 3... d4 {[%clk 0:02:58.7]}
4. Nf3 {[%clk 0:03:00.2]} 4... Nc6 {[%clk 0:02:58.9]} 5. a3 {[%clk 0:03:00.3]}
5... Nge7 {[%clk 0:02:58.5]} 6. e3 {[%clk 0:03:00.2]} 6... Bg4 {[%clk
0:02:57.2]} 7. Be2 {[%clk 0:02:57.5]} 7... dxe3 {[%clk 0:02:56.7]} 8. Qxd8+
{[%clk 0:02:55.2]} 8... Rxd8 {[%clk 0:02:56.5]} 9. Bxe3 {[%clk 0:02:55.4]} 9...
Ng6 {[%clk 0:02:56.4]} 10. Nbd2 {[%clk 0:02:54.5]} 10... Ngxe5 {[%clk
0:02:56.2]} 11. Nxe5 {[%clk 0:02:54]} 11... Nxe5 {[%clk 0:02:57.1]} 12. Bxg4
{[%clk 0:02:52.1]} 12... Nxg4 {[%clk 0:02:58]} 13. Bf4 {[%clk 0:02:39.7]} 13...
Bd6 {[%clk 0:02:58]} 14. Bg3 {[%clk 0:02:34.1]} 14... Bxg3 {[%clk 0:02:56.6]}
15. hxg3 {[%clk 0:02:32.9]} 15... O-O {[%clk 0:02:57]} 16. Rd1 {[%clk
0:02:22.1]} 16... Rfe8+ {[%clk 0:02:56.9]} 17. Kf1 {[%clk 0:02:20.9]} 17... Rd4
{[%clk 0:02:56.1]} 18. Rh5 {[%clk 0:02:07.9]} 18... Red8 {[%clk 0:02:51.7]} 19.
Ke2 {[%clk 0:02:04.8]} 19... Nxf2 {[%clk 0:02:51.5]} 20. Kxf2 {[%clk 0:02:03.3]}
20... Rxd2+ {[%clk 0:02:51.6]} 21. Rxd2 {[%clk 0:02:03.1]} 21... Rxd2+ {[%clk
0:02:52.5]} 22. Ke3 {[%clk 0:02:03.4]} 22... Rxb2 {[%clk 0:02:50.6]} 23. Rd5
{[%clk 0:02:02.7]} 23... g6 {[%clk 0:02:50.7]} 24. Rd7 {[%clk 0:02:00.2]} 24...
Rxg2 {[%clk 0:02:50.4]} 25. Rxc7 {[%clk 0:01:57.6]} 25... Rxg3+ {[%clk
0:02:50.6]} 26. Kd4 {[%clk 0:01:58]} 26... Rxa3 {[%clk 0:02:50.1]} 27. Rxb7
{[%clk 0:01:57.7]} 27... h5 {[%clk 0:02:48.9]} 28. c5 {[%clk 0:01:58]} 28... Ra1
{[%clk 0:02:44.7]} 29. Rb4 {[%clk 0:01:56.7]} 29... Kf8 {[%clk 0:02:42]} 30. c6
{[%clk 0:01:53.8]} 30... Ke7 {[%clk 0:02:42.4]} 31. Kd5 {[%clk 0:01:50.3]} 31...
Rd1+ {[%clk 0:02:40.9]} 32. Kc5 {[%clk 0:01:50.2]} 32... Rc1+ {[%clk 0:02:40.6]}
33. Kd5 {[%clk 0:01:49.2]} 33... h4 {[%clk 0:02:38.1]} 34. Rb7+ {[%clk
0:01:48.8]} 34... Ke8 {[%clk 0:02:36.1]} 35. Rxa7 {[%clk 0:01:47.7]} 35... h3
{[%clk 0:02:35.9]} 36. Ra8+ {[%clk 0:01:46.4]} 36... Ke7 {[%clk 0:02:35.8]} 37.
Rh8 {[%clk 0:01:46]} 37... Rc3 {[%clk 0:02:35.7]} 38. Rh7 {[%clk 0:01:27.1]}
38... g5 {[%clk 0:02:35.4]} 39. Rh5 {[%clk 0:01:26.9]} 39... g4 {[%clk
0:02:33.9]} 40. Rh4 {[%clk 0:01:26.8]} 40... f5 {[%clk 0:02:30.8]} 41. Rh7+
{[%clk 0:01:25.8]} 41... Kf6 {[%clk 0:02:31.2]} 42. Kd6 {[%clk 0:01:25.4]} 42...
f4 {[%clk 0:02:29.8]} 0-1

[Event "Late-Titled-Tuesday-Blitz-April-30-2024"]
[Site "Chess.com"]
[Date "2024.04.30"]
[Round "5"]
[White "baki83"]
[Black "SaqoChess_Twitch"]
[Result "1-0"]
[WhiteElo "2908"]
[BlackElo "2678"]
[TimeControl "180+1"]
[EndTime "14:54:01 PDT"]
[Termination "baki83 won by resignation"]

1. e4 {[%clk 0:03:00.9]} 1... c5 {[%clk 0:02:59.2]} 2. Nf3 {[%clk 0:02:59.5]}
2... d6 {[%clk 0:02:58.5]} 3. Bb5+ {[%clk 0:02:59.6]} 3... Bd7 {[%clk
0:02:58.3]} 4. c4 {[%clk 0:02:59.1]} 4... Nf6 {[%clk 0:02:57.7]} 5. Nc3 {[%clk
0:02:58.9]} 5... e6 {[%clk 0:02:57.2]} 6. O-O {[%clk 0:02:58.7]} 6... Be7 {[%clk
0:02:57.5]} 7. d4 {[%clk 0:02:58.7]} 7... cxd4 {[%clk 0:02:57.4]} 8. Nxd4 {[%clk
0:02:58.2]} 8... O-O {[%clk 0:02:58]} 9. Qe2 {[%clk 0:02:56.4]} 9... Nc6 {[%clk
0:02:57.4]} 10. Bxc6 {[%clk 0:02:55.4]} 10... Bxc6 {[%clk 0:02:56.2]} 11. Rd1
{[%clk 0:02:47.9]} 11... a6 {[%clk 0:02:49.3]} 12. e5 {[%clk 0:02:42.3]} 12...
Ne8 {[%clk 0:02:45.6]} 13. Nxc6 {[%clk 0:02:37.5]} 13... bxc6 {[%clk 0:02:45.4]}
14. exd6 {[%clk 0:02:37.9]} 14... Bxd6 {[%clk 0:02:33]} 15. c5 {[%clk
0:02:37.4]} 15... Bxh2+ {[%clk 0:02:33]} 16. Kxh2 {[%clk 0:02:37.3]} 16... Qh4+
{[%clk 0:02:31.7]} 17. Kg1 {[%clk 0:02:37.3]} 17... Nf6 {[%clk 0:02:32.6]} 18.
g3 {[%clk 0:02:09.1]} 18... Qh3 {[%clk 0:02:28.2]} 19. Ne4 {[%clk 0:01:48.5]}
19... Ng4 {[%clk 0:02:18.8]} 20. f3 {[%clk 0:01:46.8]} 20... f5 {[%clk
0:02:05.7]} 21. Qg2 {[%clk 0:01:37]} 21... Qh5 {[%clk 0:01:26.4]} 22. fxg4
{[%clk 0:01:35.6]} 22... fxg4 {[%clk 0:01:27.3]} 23. Bf4 {[%clk 0:01:17.9]} 1-0

[Event "Late-Titled-Tuesday-Blitz-April-30-2024"]
[Site "Chess.com"]
[Date "2024.04.30"]
[Round "5"]
[White "PawnEatingZombie"]
[Black "PapaieDudu"]
[Result "1-0"]
[WhiteElo "2220"]
[BlackElo "2378"]
[TimeControl "180+1"]
[EndTime "14:54:07 PDT"]
[Termination "PawnEatingZombie won by resignation"]

1. e4 {[%clk 0:02:54.1]} 1... c5 {[%clk 0:03:00.3]} 2. c3 {[%clk 0:02:49.9]}
2... Nf6 {[%clk 0:02:59.9]} 3. e5 {[%clk 0:02:49.4]} 3... Nd5 {[%clk 0:03:00.5]}
4. Nf3 {[%clk 0:02:49.1]} 4... d6 {[%clk 0:03:00.3]} 5. d4 {[%clk 0:02:47.9]}
5... cxd4 {[%clk 0:03:00.4]} 6. cxd4 {[%clk 0:02:48.8]} 6... e6 {[%clk
0:02:59.9]} 7. Bc4 {[%clk 0:02:45.8]} 7... Be7 {[%clk 0:02:59.6]} 8. O-O {[%clk
0:02:45.1]} 8... O-O {[%clk 0:02:59.7]} 9. Qe2 {[%clk 0:02:45.2]} 9... Nc6
{[%clk 0:02:59.8]} 10. Rd1 {[%clk 0:02:44.4]} 10... a6 {[%clk 0:02:59.5]} 11.
Nc3 {[%clk 0:02:42.6]} 11... dxe5 {[%clk 0:02:39.5]} 12. dxe5 {[%clk 0:02:30.6]}
12... Nxc3 {[%clk 0:02:36.8]} 13. bxc3 {[%clk 0:02:31.1]} 13... Qa5 {[%clk
0:02:36.3]} 14. Bd3 {[%clk 0:02:22.3]} 14... Rd8 {[%clk 0:02:30.9]} 15. Qe4
{[%clk 0:02:12.6]} 15... g6 {[%clk 0:02:29.3]} 16. Bh6 {[%clk 0:01:58.9]} 16...
Bd7 {[%clk 0:02:26.3]} 17. Rab1 {[%clk 0:01:47]} 17... b5 {[%clk 0:02:23.2]} 18.
h4 {[%clk 0:01:37.3]} 18... Qxa2 {[%clk 0:02:15.4]} 19. h5 {[%clk 0:01:30.3]}
19... Qd5 {[%clk 0:02:13.3]} 20. Qf4 {[%clk 0:01:24.7]} 20... Be8 {[%clk
0:02:09.4]} 21. Bxg6 {[%clk 0:01:18.2]} 21... hxg6 {[%clk 0:02:06.9]} 22. Rxd5
{[%clk 0:01:16.4]} 22... exd5 {[%clk 0:02:02.1]} 23. hxg6 {[%clk 0:01:11.6]}
23... fxg6 {[%clk 0:02:02]} 24. Bg5 {[%clk 0:01:01.2]} 24... Bf7 {[%clk
0:02:02.2]} 25. Bxe7 {[%clk 0:01:00.6]} 25... Nxe7 {[%clk 0:02:03]} 26. Ng5
{[%clk 0:00:59.7]} 26... Rf8 {[%clk 0:01:59.6]} 27. Qh4 {[%clk 0:00:54.6]} 1-0

[Event "Late-Titled-Tuesday-Blitz-April-30-2024"]
[Site "Chess.com"]
[Date "2024.04.30"]
[Round "5"]
[White "Akhayan"]
[Black "lamomiajunior"]
[Result "0-1"]
[WhiteElo "2487"]
[BlackElo "2751"]
[TimeControl "180+1"]
[EndTime "14:54:19 PDT"]
[Termination "lamomiajunior won by resignation"]

1. e4 {[%clk 0:02:40.8]} 1... c5 {[%clk 0:02:59.8]} 2. Nf3 {[%clk 0:02:40.1]}
2... d6 {[%clk 0:03:00.3]} 3. d4 {[%clk 0:02:40.3]} 3... cxd4 {[%clk 0:03:01.2]}
4. Nxd4 {[%clk 0:02:40.6]} 4... Nf6 {[%clk 0:03:01.8]} 5. Nc3 {[%clk 0:02:41]}
5... a6 {[%clk 0:03:02.5]} 6. Bc4 {[%clk 0:02:40.7]} 6... e6 {[%clk 0:03:02.1]}
7. Bb3 {[%clk 0:02:38.9]} 7... b5 {[%clk 0:03:02.4]} 8. O-O {[%clk 0:02:39.2]}
8... Be7 {[%clk 0:03:02.1]} 9. f4 {[%clk 0:02:38.9]} 9... Qc7 {[%clk 0:02:59.7]}
10. f5 {[%clk 0:02:37.7]} 10... e5 {[%clk 0:02:57]} 11. Nde2 {[%clk 0:02:37.5]}
11... Bb7 {[%clk 0:02:57.1]} 12. Bg5 {[%clk 0:02:34.7]} 12... Nbd7 {[%clk
0:02:56.4]} 13. Bxf6 {[%clk 0:02:33.1]} 13... Nxf6 {[%clk 0:02:57.3]} 14. Ng3
{[%clk 0:02:31.7]} 14... h5 {[%clk 0:02:56.1]} 15. Nd5 {[%clk 0:02:27.9]} 15...
Bxd5 {[%clk 0:02:55.9]} 16. Bxd5 {[%clk 0:02:27.6]} 16... h4 {[%clk 0:02:43.4]}
17. Bxa8 {[%clk 0:02:23.3]} 17... hxg3 {[%clk 0:02:43.5]} 18. h3 {[%clk
0:02:11.8]} 18... Qa7+ {[%clk 0:02:42.4]} 19. Kh1 {[%clk 0:02:10.4]} 19... Qxa8
{[%clk 0:02:43.3]} 20. Qf3 {[%clk 0:01:35.2]} 20... Nxe4 {[%clk 0:02:38.2]} 21.
Rae1 {[%clk 0:01:30.6]} 21... d5 {[%clk 0:02:38.8]} 22. Rxe4 {[%clk 0:00:59.8]}
22... dxe4 {[%clk 0:02:38.6]} 23. Qxg3 {[%clk 0:01:00.4]} 23... Bf6 {[%clk
0:02:37.3]} 24. Qa3 {[%clk 0:00:57.2]} 24... Qc6 {[%clk 0:02:24.6]} 25. c4
{[%clk 0:00:52.5]} 25... bxc4 {[%clk 0:02:21.4]} 26. Rd1 {[%clk 0:00:45.8]}
26... Be7 {[%clk 0:02:20.2]} 27. Qg3 {[%clk 0:00:40.6]} 27... O-O {[%clk
0:02:17.9]} 28. Qxe5 {[%clk 0:00:40.1]} 28... Bf6 {[%clk 0:02:18.6]} 29. Qg3
{[%clk 0:00:38.9]} 29... Bxb2 {[%clk 0:02:12.9]} 30. Rd6 {[%clk 0:00:35.1]}
30... Qc7 {[%clk 0:02:12.3]} 31. f6 {[%clk 0:00:34.7]} 31... Bxf6 {[%clk
0:02:11.4]} 0-1